fUSD/lending_fUSD_20250412
["ID","MTS","AMOUNT","RATE_DAILY","PERIOD"]
[357743986,1744423841343,-500.0,0.00019178,2]
[357743987,1744423841353,-500.0,0.00019178,2]
[357743988,1744423841362,-500.0,0.00019178,2]
[357743989,1744423841374,-1358.55,0.00019178,2]
[357743990,1744423841384,-500.0,0.00019178,2]
[357743991,1744423841393,-500.0,0.00019178,2]
[357743992,1744423841405,-1525.92,0.00019178,2]
[357743993,1744423841415,-500.0,0.00019178,2]
[357743994,1744423841425,-3135.22,0.00019178,2]
[357743995,1744423841434,-500.0,0.00019178,2]
[357743996,1744423841444,-500.0,0.00019178,2]
[357743997,1744423841454,-500.0,0.00019178,2]
[357743998,1744423841463,-500.0,0.00019178,2]
[357743999,1744423841473,-500.0,0.00019178,2]
[357744000,1744423841483,-500.0,0.00019178,2]
[357744001,1744423841492,-500.0,0.00019178,2]
[357744002,1744423841502,-500.0,0.00019178,2]
[357744003,1744423841511,-500.0,0.00019178,2]
[357744004,1744423841521,-500.0,0.00019178,2]
[357744005,1744423841531,-500.0,0.00019178,2]
[357744006,1744423841541,-500.0,0.00019178,2]
[357744007,1744423841550,-500.0,0.00019178,2]
[357744008,1744423841559,-500.0,0.00019178,2]
[357744009,1744423841569,-500.0,0.00019178,2]
[357744010,1744423841579,-500.0,0.00019178,2]
[357744011,1744423841588,-500.0,0.00019178,2]
[357744012,1744423841598,-500.0,0.00019178,2]
[357744013,1744423841609,-1013.72,0.00019178,2]
[357744014,1744423841620,-500.0,0.00019178,2]
[357744015,1744423841629,-500.0,0.00019178,2]
[357744016,1744423841639,-783.17,0.00019178,2]
[357744017,1744423841648,-833.19,0.00019178,2]
[357744018,1744423841658,-500.0,0.00019178,2]
[357744019,1744423841667,-174.779625,0.00019178,2]
[357744020,1744423841676,-500.0,0.00019178,2]
[357744021,1744423841686,-1057.27,0.00019178,2]
[357744022,1744423841696,-500.0,0.00019178,2]
[357744023,1744423841705,-500.0,0.00019178,2]
[357744024,1744423841714,-593.87,0.00019178,2]
[357744025,1744423841724,-500.0,0.00019178,2]
[357744026,1744423841733,-500.0,0.00019178,2]
[357744027,1744423841742,-500.0,0.00019178,2]
[357744028,1744423841751,-500.0,0.00019178,2]
[357744029,1744423841760,-500.0,0.00019178,2]
[357744030,1744423841770,-500.0,0.00019178,2]
[357744031,1744423841779,-576.16,0.00019178,2]
[357744032,1744423841788,-500.0,0.00019178,2]
[357744033,1744423841797,-500.0,0.00019178,2]
[357744034,1744423841807,-500.0,0.00019178,2]
[357744035,1744423841816,-1244.95,0.00019178,2]
[357744036,1744423841825,-596.99,0.00019178,2]
[357744037,1744423841835,-500.0,0.00019178,2]
[357744038,1744423841844,-500.0,0.00019178,2]
[357744039,1744423841854,-500.0,0.00019178,2]
[357744040,1744423841863,-500.0,0.00019178,2]
[357744041,1744423841872,-3116.37,0.00019178,2]
[357744042,1744423841882,-500.0,0.00019178,2]
[357744043,1744423841891,-570.99502013,0.00019178,2]
[357744044,1744423841900,-160.44850057,0.00019178,2]
[357744045,1744423841909,-500.0,0.00019178,2]
[357744046,1744423841919,-500.0,0.00019178,2]
[357744047,1744423841928,-500.0,0.00019178,2]
[357744048,1744423841937,-500.0,0.00019178,2]
[357744049,1744423841946,-500.0,0.00019178,2]
[357744050,1744423841955,-500.0,0.00019178,2]
[357744051,1744423841965,-500.0,0.00019178,2]
[357744052,1744423841974,-500.0,0.00019178,2]
[357744053,1744423841983,-500.0,0.00019178,2]
[357744054,1744423841992,-157.95197,0.00019178,2]
[357744055,1744423842001,-500.0,0.00019178,2]
[357744056,1744423842011,-500.0,0.00019178,2]
[357744057,1744423842020,-500.0,0.00019178,2]
[357744058,1744423842029,-500.0,0.00019178,2]
[357744059,1744423842038,-500.0,0.00019178,2]
[357744060,1744423842047,-500.0,0.00019178,2]
[357744061,1744423842056,-500.0,0.00019178,2]
[357744062,1744423842065,-500.0,0.00019178,2]
[357744063,1744423842075,-500.0,0.00019178,2]
[357744064,1744423842083,-500.0,0.00019178,2]
[357744065,1744423842093,-1258.45,0.00019178,2]
[357744066,1744423842102,-2267.66018,0.00019178,2]
[357744067,1744423842111,-500.0,0.00019178,2]
[357744068,1744423842120,-500.0,0.00019178,2]
[357744069,1744423842129,-838.35,0.00019178,2]
[357744070,1744423842139,-500.0,0.00019178,2]
[357744071,1744423842295,-500.0,0.00019178,2]
[357744072,1744423842304,-500.0,0.00019178,2]
[357744073,1744423842314,-823.01,0.00019178,2]
[357744074,1744423842329,-500.0,0.00019178,2]
[357744075,1744423842338,-500.0,0.00019178,2]
[357744076,1744423842348,-500.0,0.00019178,2]
[357744077,1744423842359,-500.0,0.00019178,2]
[357744078,1744423842368,-500.0,0.00019178,2]
[357744079,1744423842378,-553.21849253,0.00019178,2]
[357744080,1744423842387,-566.59,0.00019178,2]
[357744081,1744423842397,-500.0,0.00019178,2]
[357744082,1744423842406,-500.0,0.00019178,2]
[357744083,1744423842415,-500.0,0.00019178,2]
[357744084,1744423842425,-500.0,0.00019178,2]
[357744085,1744423842434,-500.0,0.00019178,2]
[357744086,1744423842444,-500.0,0.00019178,2]
[357744087,1744423842453,-500.0,0.00019178,2]
[357744088,1744423842463,-716.75,0.00019178,2]
[357744089,1744423842473,-500.0,0.00019178,2]
[357744090,1744423842482,-667.49,0.00019178,2]
[357744091,1744423842492,-507.26491423,0.00019178,2]
[357744092,1744423842502,-500.0,0.00019178,2]
[357744093,1744423842511,-500.0,0.00019178,2]
[357744094,1744423842521,-500.0,0.00019178,2]
[357744095,1744423842531,-352.54,0.00019178,2]
[357744096,1744423842541,-500.0,0.00019178,2]
[357744097,1744423842552,-500.0,0.00019178,2]
[357744098,1744423842562,-500.0,0.00019178,2]
[357744099,1744423842571,-676.1,0.00019178,2]
[357744100,1744423842581,-500.0,0.00019178,2]
[357744101,1744423842591,-500.0,0.00019178,2]
[357744102,1744423842601,-877.87,0.00019178,2]
[357744103,1744423842611,-500.0,0.00019178,2]
[357744104,1744423842621,-152.034361,0.00019178,2]
[357744105,1744423842631,-193.08987308,0.00019178,2]
[357744107,1744423842640,-500.0,0.00019178,2]
[357744108,1744423842650,-500.0,0.00019178,2]
[357744110,1744423842660,-197.496424,0.00019178,2]
[357744111,1744423842670,-500.0,0.00019178,2]
[357744112,1744423842679,-500.0,0.00019178,2]
[357744113,1744423842688,-500.0,0.00019178,2]
[357744114,1744423842698,-818.05,0.00019178,2]
[357744115,1744423842707,-500.0,0.00019178,2]
[357744116,1744423842717,-500.0,0.00019178,2]
[357744117,1744423842727,-703.76,0.00019178,2]
[357744118,1744423842736,-500.0,0.00019178,2]
[357744119,1744423842745,-500.0,0.00019178,2]
[357744120,1744423842754,-500.0,0.00019178,2]
[357744121,1744423842763,-936.14,0.00019178,2]
[357744122,1744423842773,-500.0,0.00019178,2]
[357744125,1744423842783,-500.0,0.00019178,2]
[357744128,1744423842794,-500.0,0.00019178,2]
[357744131,1744423842803,-344.28415115,0.00019178,2]
[357744133,1744423842812,-758.82,0.00019178,2]
[357744135,1744423842821,-665.59,0.00019178,2]
[357744137,1744423842830,-500.0,0.00019178,2]
[357744138,1744423842839,-500.0,0.00019178,2]
[357744139,1744423842848,-979.6,0.00019178,2]
[357744140,1744423842857,-500.0,0.00019178,2]
[357744141,1744423842866,-1262.45,0.00019178,2]
[357744142,1744423842875,-500.0,0.00019178,2]
[357744144,1744423842885,-500.0,0.00019178,2]
[357744146,1744423842894,-500.0,0.00019178,2]
[357744148,1744423842903,-500.0,0.00019178,2]
[357744149,1744423842912,-500.0,0.00019178,2]
[357744150,1744423842921,-500.0,0.00019178,2]
[357744151,1744423842930,-602.8,0.00019178,2]
[357744152,1744423842940,-1120.28,0.00019178,2]
[357744153,1744423842949,-500.0,0.00019178,2]
[357744154,1744423842958,-593.53919277,0.00019178,2]
[357744155,1744423842968,-2701.51,0.00019178,2]
[357744156,1744423842977,-536.01,0.00019178,2]
[357744157,1744423842986,-500.0,0.00019178,2]
[357744158,1744423842995,-571.6,0.00019178,2]
[357744159,1744423843005,-500.0,0.00019178,2]
[357744160,1744423843013,-500.0,0.00019178,2]
[357744161,1744423843023,-500.0,0.00019178,2]
[357744162,1744423843032,-500.0,0.00019178,2]
[357744163,1744423843041,-500.0,0.00019178,2]
[357744164,1744423843050,-500.0,0.00019178,2]
[357744165,1744423843059,-500.0,0.00019178,2]
[357744166,1744423843068,-500.0,0.00019178,2]
[357744167,1744423843077,-523.42443178,0.00019178,2]
[357744168,1744423843086,-500.0,0.00019178,2]
[357744169,1744423843095,-500.0,0.00019178,2]
[357744170,1744423843104,-500.0,0.00019178,2]
[357744171,1744423843113,-500.0,0.00019178,2]
[357744172,1744423843122,-594.61,0.00019178,2]
[357744173,1744423843131,-500.0,0.00019178,2]
[357744174,1744423843140,-508.51963406,0.00019178,2]
[357744175,1744423843148,-664.75,0.00019178,2]
[357744176,1744423843157,-500.0,0.00019178,2]
[357744177,1744423843166,-500.0,0.00019178,2]
[357744178,1744423843175,-500.0,0.00019178,2]
[357744179,1744423843185,-500.0,0.00019178,2]
[357744180,1744423843194,-572.57,0.00019178,2]
[357744181,1744423843203,-500.0,0.00019178,2]
[357744182,1744423843212,-519.46683354,0.00019178,2]
[357744183,1744423843221,-500.0,0.00019178,2]
[357744184,1744423843230,-500.0,0.00019178,2]
[357744185,1744423843240,-500.0,0.00019178,2]
[357744186,1744423843249,-500.0,0.00019178,2]
[357744187,1744423843258,-500.0,0.00019178,2]
[357744188,1744423843267,-500.0,0.00019178,2]
[357744189,1744423843277,-500.0,0.00019178,2]
[357744190,1744423843286,-503.10640912,0.00019178,2]
[357744191,1744423843295,-500.0,0.00019178,2]
[357744192,1744423843304,-500.0,0.00019178,2]
[357744193,1744423843314,-771.56,0.00019178,2]
[357744194,1744423843328,-506.19453989,0.00019178,2]
[357744195,1744423843338,-500.0,0.00019178,2]
[357744196,1744423843348,-500.0,0.00019178,2]
[357744197,1744423843357,-500.0,0.00019178,2]
[357744198,1744423843368,-542.72698298,0.00019178,2]
[357744199,1744423843377,-501.31910404,0.00019178,2]
[357744200,1744423843386,-778.97,0.00019178,2]
[357744201,1744423843398,-597.61,0.00019178,2]
[357744202,1744423843407,-500.0,0.00019178,2]
[357744203,1744423843416,-504.99899536,0.00019178,2]
[357744204,1744423843425,-500.0,0.00019178,2]
[357744205,1744423843434,-500.0,0.00019178,2]
[357744207,1744423843445,-500.0,0.00019178,2]
[357744208,1744423843455,-504.66405339,0.00019178,2]
[357744209,1744423843464,-1488.13,0.00019178,2]
[357744210,1744423843473,-500.0,0.00019178,2]
[357744211,1744423843483,-503.72569549,0.00019178,2]
[357744212,1744423843492,-731.74,0.00019178,2]
[357744213,1744423843502,-1339.52,0.00019178,2]
[357744214,1744423843511,-631.26,0.00019178,2]
[357744215,1744423843521,-614.0,0.00019178,2]
[357744216,1744423843530,-500.0,0.00019178,2]
[357744217,1744423843540,-500.0,0.00019178,2]
[357744218,1744423843549,-500.0,0.00019178,2]
[357744219,1744423843558,-1508.51,0.00019178,2]
[357744220,1744423843568,-500.0,0.00019178,2]
[357744221,1744423843578,-500.0,0.00019178,2]
[357744222,1744423843587,-459.91008154,0.00019178,2]
[357744223,1744423843597,-500.0,0.00019178,2]
[357744224,1744423843607,-983.61,0.00019178,2]
[357744225,1744423843617,-500.0,0.00019178,2]
[357744226,1744423843627,-500.0,0.00019178,2]
[357744227,1744423843637,-500.0,0.00019178,2]
[357744228,1744423843646,-626.27,0.00019178,2]
[357744229,1744423843656,-500.0,0.00019178,2]
[357744230,1744423843665,-500.0,0.00019178,2]
[357744231,1744423843675,-500.0,0.00019178,2]
[357744232,1744423843685,-500.0,0.00019178,2]
[357744233,1744423843694,-500.0,0.00019178,2]
[357744234,1744423843704,-500.0,0.00019178,2]
[357744235,1744423843714,-500.0,0.00019178,2]
[357744236,1744423843724,-268.12477062,0.00019178,2]
[357744237,1744423843733,-500.0,0.00019178,2]
[357744238,1744423843743,-500.0,0.00019178,2]
[357744239,1744423843752,-500.0,0.00019178,2]
[357744240,1744423843762,-500.0,0.00019178,2]
[357744241,1744423843771,-500.0,0.00019178,2]
[357744242,1744423843781,-500.0,0.00019178,2]
[357744243,1744423843790,-503.02013654,0.00019178,2]
[357744244,1744423843800,-500.0,0.00019178,2]
[357744245,1744423843810,-500.0,0.00019178,2]
[357744246,1744423843820,-1048.74,0.00019178,2]
[357744247,1744423843830,-500.0,0.00019178,2]
[357744248,1744423843839,-500.0,0.00019178,2]
[357744249,1744423843849,-500.0,0.00019178,2]
[357744250,1744423843858,-500.0,0.00019178,2]
[357744251,1744423843867,-500.0,0.00019178,2]
[357744252,1744423843876,-500.0,0.00019178,2]
[357744254,1744423843886,-790.61,0.00019178,2]
[357744256,1744423843896,-500.0,0.00019178,2]
[357744257,1744423843905,-1446.31,0.00019178,2]
[357744258,1744423843915,-500.0,0.00019178,2]
[357744259,1744423843924,-500.0,0.00019178,2]
[357744260,1744423843934,-697.28,0.00019178,2]
[357744261,1744423843943,-500.0,0.00019178,2]
[357744262,1744423843953,-500.0,0.00019178,2]
[357744263,1744423843962,-500.0,0.00019178,2]
[357744264,1744423843972,-500.0,0.00019178,2]
[357744265,1744423843981,-500.0,0.00019178,2]
[357744266,1744423843990,-500.0,0.00019178,2]
[357744267,1744423843999,-500.0,0.00019178,2]
[357744268,1744423844009,-763.96,0.00019178,2]
[357744269,1744423844018,-500.0,0.00019178,2]
[357744270,1744423844028,-556.29,0.00019178,2]
[357744271,1744423844037,-500.0,0.00019178,2]
[357744272,1744423844047,-500.0,0.00019178,2]
[357744273,1744423844056,-500.0,0.00019178,2]
[357744274,1744423844065,-500.0,0.00019178,2]
[357744275,1744423844074,-500.0,0.00019178,2]
[357744276,1744423844083,-500.0,0.00019178,2]
[357744277,1744423844093,-500.0,0.00019178,2]
[357744278,1744423844102,-500.0,0.00019178,2]
[357744279,1744423844112,-500.0,0.00019178,2]
[357744280,1744423844121,-500.0,0.00019178,2]
[357744281,1744423844131,-500.0,0.00019178,2]
[357744282,1744423844140,-641.6,0.00019178,2]
[357744283,1744423844150,-9443.71,0.00019178,2]
[357744284,1744423844160,-1457.14,0.00019178,2]
[357744285,1744423844169,-500.0,0.00019178,2]
[357744286,1744423844179,-910.6,0.00019178,2]
[357744287,1744423844188,-500.0,0.00019178,2]
[357744288,1744423844325,-500.0,0.00019178,2]
[357744289,1744423844349,-500.0,0.00019178,2]
[357744290,1744423844359,-500.0,0.00019178,2]
[357744291,1744423844370,-500.0,0.00019178,2]
[357744292,1744423844380,-637.23,0.00019178,2]
[357744293,1744423844390,-618.03,0.00019178,2]
[357744294,1744423844402,-500.0,0.00019178,2]
[357744295,1744423844412,-500.0,0.00019178,2]
[357744296,1744423844422,-500.0,0.00019178,2]
[357744297,1744423844431,-504.13274199,0.00019178,2]
[357744298,1744423844441,-500.0,0.00019178,2]
[357744299,1744423844450,-500.0,0.00019178,2]
[357744300,1744423844459,-500.0,0.00019178,2]
[357744301,1744423844469,-500.0,0.00019178,2]
[357744302,1744423844479,-650.04,0.00019178,2]
[357744303,1744423844489,-500.0,0.00019178,2]
[357744304,1744423844498,-5202.28,0.00019178,2]
[357744305,1744423844508,-500.0,0.00019178,2]
[357744306,1744423844518,-505.73474589,0.00019178,2]
[357744307,1744423844527,-500.0,0.00019178,2]
[357744308,1744423844537,-500.0,0.00019178,2]
[357744309,1744423844546,-500.0,0.00019178,2]
[357744310,1744423844557,-500.0,0.00019178,2]
[357744311,1744423844567,-500.0,0.00019178,2]
[357744312,1744423844576,-500.0,0.00019178,2]
[357744313,1744423844585,-500.0,0.00019178,2]
[357744314,1744423844596,-514.58,0.00019178,2]
[357744315,1744423844606,-500.0,0.00019178,2]
[357744316,1744423844615,-200.85345939,0.00019178,2]
[357744317,1744423844625,-980.04,0.00019178,2]
[357744318,1744423844636,-500.0,0.00019178,2]
[357744319,1744423844646,-500.0,0.00019178,2]
[357744320,1744423844655,-500.0,0.00019178,2]
[357744321,1744423844665,-511.84,0.00019178,2]
[357744322,1744423844674,-511.10351496,0.00019178,2]
[357744323,1744423844683,-500.0,0.00019178,2]
[357744324,1744423844692,-500.0,0.00019178,2]
[357744325,1744423844702,-500.0,0.00019178,2]
[357744326,1744423844711,-500.0,0.00019178,2]
[357744327,1744423844720,-500.0,0.00019178,2]
[357744328,1744423844729,-1000.0,0.00019178,2]
[357744329,1744423844739,-512.93777592,0.00019178,2]
[357744330,1744423844748,-500.0,0.00019178,2]
[357744331,1744423844757,-500.0,0.00019178,2]
[357744332,1744423844766,-500.0,0.00019178,2]
[357744333,1744423844775,-1426.35,0.00019178,2]
[357744334,1744423844784,-500.0,0.00019178,2]
[357744335,1744423844794,-756.54,0.00019178,2]
[357744336,1744423844803,-500.0,0.00019178,2]
[357744337,1744423844811,-573.9733596,0.00019178,2]
[357744338,1744423844821,-500.0,0.00019178,2]
[357744339,1744423844830,-591.71,0.00019178,2]
[357744340,1744423844838,-500.0,0.00019178,2]
[357744341,1744423844847,-241.9106037,0.00019178,2]
[357744342,1744423844857,-500.0,0.00019178,2]
[357744343,1744423844866,-500.0,0.00019178,2]
[357744344,1744423844875,-500.0,0.00019178,2]
[357744345,1744423844884,-500.0,0.00019178,2]
[357744346,1744423844894,-503.4659013,0.00019178,2]
[357744347,1744423844903,-500.0,0.00019178,2]
[357744348,1744423844913,-818.75,0.00019178,2]
[357744349,1744423844922,-1291.18,0.00019178,2]
[357744350,1744423844931,-693.97,0.00019178,2]
[357744351,1744423844941,-500.0,0.00019178,2]
[357744352,1744423844950,-611.83,0.00019178,2]
[357744353,1744423844960,-500.0,0.00019178,2]
[357744354,1744423844969,-500.0,0.00019178,2]
[357744355,1744423844978,-1274.36,0.00019178,2]
[357744356,1744423844988,-442.15734273,0.00019178,2]
[357744357,1744423844997,-500.0,0.00019178,2]
[357744358,1744423845007,-500.0,0.00019178,2]
[357744359,1744423845016,-527.31908041,0.00019178,2]
[357744360,1744423845025,-541.73018709,0.00019178,2]
[357744361,1744423845035,-500.0,0.00019178,2]
[357744362,1744423845044,-500.0,0.00019178,2]
[357744363,1744423845053,-2702.4,0.00019178,2]
[357744364,1744423845062,-1733.16,0.00019178,2]
[357744365,1744423845071,-1054.51,0.00019178,2]
[357744366,1744423845080,-1115.64,0.00019178,2]
[357744367,1744423845089,-500.0,0.00019178,2]
[357744368,1744423845098,-500.0,0.00019178,2]
[357744369,1744423845107,-656.1,0.00019178,2]
[357744370,1744423845116,-500.0,0.00019178,2]
[357744371,1744423845125,-550.8,0.00019178,2]
[357744372,1744423845134,-500.0,0.00019178,2]
[357744373,1744423845143,-678.72,0.00019178,2]
[357744374,1744423845151,-788.84,0.00019178,2]
[357744375,1744423845160,-500.0,0.00019178,2]
[357744376,1744423845170,-1278.77,0.00019178,2]
[357744377,1744423845178,-500.0,0.00019178,2]
[357744378,1744423845187,-500.0,0.00019178,2]
[357744379,1744423845196,-500.0,0.00019178,2]
[357744380,1744423845206,-2000.0,0.00019178,2]
[357744381,1744423845215,-285.50887981,0.00019178,2]
[357744382,1744423845234,-500.0,0.00019178,2]
[357744383,1744423845249,-500.0,0.00019178,2]
[357744384,1744423845268,-971.34,0.00019178,2]
[357744385,1744423845286,-500.0,0.00019178,2]
[357744386,1744423845301,-170567.45,0.00019178,2]
[357744387,1744423845317,-500.0,0.00019178,2]
[357744388,1744423845339,-663.76,0.00019178,2]
[357744389,1744423845360,-22455.44,0.00019178,2]
[357744390,1744423845379,-500.0,0.00019178,2]
[357744391,1744423845396,-514.61658345,0.00019178,2]
[357744392,1744423845413,-500.0,0.00019178,2]
[357744393,1744423845427,-624.19472363,0.00019178,2]
[357744394,1744423845445,-500.0,0.00019178,2]
[357744395,1744423845460,-545.22,0.00019178,2]
[357744396,1744423845479,-500.0,0.00019178,2]
[357744397,1744423845492,-500.0,0.00019178,2]
[357744398,1744423845508,-500.0,0.00019178,2]
[357744399,1744423845523,-657.88,0.00019178,2]
[357744400,1744423845538,-631.62,0.00019178,2]
[357744401,1744423845553,-500.0,0.00019178,2]
[357744402,1744423845569,-4165.01,0.00019178,2]
[357744403,1744423845583,-500.86101743,0.00019178,2]
[357744404,1744423845598,-520.8952286,0.00019178,2]
[357744405,1744423845619,-500.0,0.00019178,2]
[357744406,1744423845634,-514.40650956,0.00019178,2]
[357744407,1744423845650,-500.0,0.00019178,2]
[357744408,1744423845665,-500.0,0.00019178,2]
[357744409,1744423845681,-500.0,0.00019178,2]
[357744410,1744423845696,-500.0,0.00019178,2]
[357744411,1744423845710,-1237.32,0.00019178,2]
[357744412,1744423845725,-504.84488029,0.00019178,2]
[357744414,1744423845739,-500.0,0.00019178,2]
[357744416,1744423845753,-500.0,0.00019178,2]
[357744417,1744423845768,-2250.65,0.00019178,2]
[357744419,1744423845782,-500.0,0.00019178,2]
[357744420,1744423845797,-500.0,0.00019178,2]
[357744421,1744423845811,-1000.0,0.00019178,2]
[357744422,1744423845826,-1512.85,0.00019178,2]
[357744423,1744423845840,-714.14,0.00019178,2]
[357744424,1744423845855,-500.0,0.00019178,2]
[357744425,1744423845870,-500.0,0.00019178,2]
[357744426,1744423845885,-500.0,0.00019178,2]
[357744427,1744423845900,-500.0,0.00019178,2]
[357744428,1744423845915,-500.0,0.00019178,2]
[357744429,1744423845931,-1672.63,0.00019178,2]
[357744430,1744423845946,-500.0,0.00019178,2]
[357744431,1744423845961,-500.0,0.00019178,2]
[357744432,1744423845976,-500.0,0.00019178,2]
[357744433,1744423845991,-500.0,0.00019178,2]
[357744434,1744423846006,-611.79,0.00019178,2]
[357744435,1744423846021,-500.0,0.00019178,2]
[357744436,1744423846036,-1570.77,0.00019178,2]
[357744437,1744423846051,-2287.96,0.00019178,2]
[357744438,1744423846065,-5000.0,0.00019178,2]
[357744439,1744423846080,-500.0,0.00019178,2]
[357744440,1744423846095,-500.0,0.00019178,2]
[357744441,1744423846110,-500.0,0.00019178,2]
[357744442,1744423846124,-502.05230354,0.00019178,2]
[357744443,1744423846139,-637.01512139,0.00019178,2]
[357744444,1744423846153,-500.0,0.00019178,2]
[357744445,1744423846169,-500.0,0.00019178,2]
[357744446,1744423846184,-500.0,0.00019178,2]
[357744447,1744423846199,-1061.63,0.00019178,2]
[357744448,1744423846214,-500.0,0.00019178,2]
[357744449,1744423846229,-765.7,0.00019178,2]
[357744450,1744423846242,-1912.15,0.00019178,2]
[357744451,1744423846257,-500.0,0.00019178,2]
[357744452,1744423846271,-500.0,0.00019178,2]
[357744453,1744423846286,-500.0,0.00019178,2]
[357744454,1744423846301,-909.36,0.00019178,2]
[357744456,1744423846316,-500.0,0.00019178,2]
[357744457,1744423846334,-500.0,0.00019178,2]
[357744458,1744423846348,-500.0,0.00019178,2]
[357744459,1744423846363,-500.0,0.00019178,2]
[357744460,1744423846378,-500.0,0.00019178,2]
[357744461,1744423846393,-500.0,0.00019178,2]
[357744462,1744423846409,-209.40711954,0.00019178,2]
[357744463,1744423846423,-500.0,0.00019178,2]
[357744464,1744423846438,-500.0,0.00019178,2]
[357744465,1744423846455,-500.0,0.00019178,2]
[357744466,1744423846470,-500.0,0.00019178,2]
[357744467,1744423846485,-500.0,0.00019178,2]
[357744468,1744423846500,-528.26121575,0.00019178,2]
[357744469,1744423846513,-500.0,0.00019178,2]
[357744470,1744423846529,-768.62,0.00019178,2]
[357744471,1744423846543,-500.0,0.00019178,2]
[357744472,1744423846558,-500.0,0.00019178,2]
[357744473,1744423846573,-2094.79,0.00019178,2]
[357744474,1744423846582,-1370.42,0.00019178,2]
[357744475,1744423846592,-500.0,0.00019178,2]
[357744476,1744423846601,-500.0,0.00019178,2]
[357744477,1744423846853,-500.0,0.00019178,2]
[357744478,1744423846888,-500.0,0.00019178,2]
[357744479,1744423846900,-3579.3,0.00019178,2]
[357744480,1744423846910,-2565.9,0.00019178,2]
[357744481,1744423846919,-520.11478262,0.00019178,2]
[357744482,1744423846928,-500.0,0.00019178,2]
[357744483,1744423846938,-500.0,0.00019178,2]
[357744484,1744423846948,-500.0,0.00019178,2]
[357744485,1744423846957,-563.5,0.00019178,2]
[357744486,1744423846967,-500.0,0.00019178,2]
[357744487,1744423846976,-500.0,0.00019178,2]
[357744488,1744423846985,-500.0,0.00019178,2]
[357744489,1744423846996,-1135.68,0.00019178,2]
[357744490,1744423847006,-500.0,0.00019178,2]
[357744491,1744423847015,-1474.56,0.00019178,2]
[357744492,1744423847024,-6145.01,0.00019178,2]
[357744493,1744423847033,-500.0,0.00019178,2]
[357744494,1744423847042,-500.0,0.00019178,2]
[357744495,1744423847052,-500.0,0.00019178,2]
[357744496,1744423847062,-500.0,0.00019178,2]
[357744497,1744423847073,-500.0,0.00019178,2]
[357744498,1744423847083,-275.03326553,0.00019178,2]
[357744499,1744423847092,-500.0,0.00019178,2]
[357744500,1744423847101,-524.6726461,0.00019178,2]
[357744501,1744423847110,-500.0,0.00019178,2]
[357744502,1744423847117,-500.0,0.00019178,2]
[357744503,1744423847123,-500.0,0.00019178,2]
[357744504,1744423847130,-500.0,0.00019178,2]
[357744505,1744423847137,-514.38,0.00019178,2]
[357744506,1744423847144,-1227.97,0.00019178,2]